fUSD/lending_fUSD_20250814
["ID","MTS","AMOUNT","RATE_DAILY","PERIOD"]
[379185217,1755179465941,-400.0,0.00027534,2]
[379185218,1755179465951,-2765.91,0.00027534,2]
[379185219,1755179465960,-400.0,0.00027534,2]
[379185220,1755179465971,-2603.23,0.00027534,2]
[379185221,1755179465983,-400.0,0.00027534,2]
[379185222,1755179465993,-531.43,0.00027534,2]
[379185223,1755179466003,-803.72,0.00027534,2]
[379185224,1755179466013,-3815.95,0.00027534,2]
[379185225,1755179466025,-3120.09,0.00027534,2]
[379185226,1755179466034,-810.94,0.00027534,2]
[379185227,1755179466045,-483.91384869,0.00027534,2]
[379185228,1755179466055,-1871.43,0.00027534,2]
[379185229,1755179466065,-400.0,0.00027534,2]
[379185230,1755179466074,-2749.41,0.00027534,2]
[379185231,1755179466084,-400.0,0.00027534,2]
[379185232,1755179466093,-7895.66,0.00027534,2]
[379185233,1755179466103,-965.75,0.00027534,2]
[379185234,1755179466113,-400.0,0.00027534,2]
[379185235,1755179466122,-991.65,0.00027534,2]
[379185236,1755179466132,-4897.993536,0.00027534,7]
[379185237,1755179466142,-4897.993536,0.00027534,7]
[379185238,1755179466152,-974.83,0.00027534,2]
[379185239,1755179466162,-4263.88,0.00027534,2]
[379185240,1755179466171,-400.0,0.00027534,2]
[379185241,1755179466181,-1335.83,0.00027534,2]
[379185242,1755179466191,-850.69,0.00027534,2]
[379185243,1755179466200,-2578.52,0.00027534,2]
[379185244,1755179466211,-676.525315,0.00027534,7]
[379185245,1755179466220,-676.525315,0.00027534,7]
[379185246,1755179466232,-4897.993536,0.00027534,7]
[379185247,1755179466329,-400.0,0.00027534,2]
[379185248,1755179466378,-4897.993536,0.00027534,7]
[379185249,1755179466387,-400.0,0.00027534,2]
[379185250,1755179466397,-456.78,0.00027534,2]
[379185251,1755179466407,-400.0,0.00027534,2]
[379185252,1755179466416,-5781.32,0.00027534,2]
[379185253,1755179466426,-676.525315,0.00027534,7]
[379185254,1755179466436,-676.525315,0.00027534,7]
[379185255,1755179466446,-6896.05,0.00027534,2]
[379185256,1755179466456,-6487.69,0.00027534,2]
[379185257,1755179466465,-1400.05,0.00027534,2]
[379185258,1755179466476,-400.0,0.00027534,2]
[379185259,1755179466486,-639.64,0.00027534,2]
[379185260,1755179466495,-403.89,0.00027534,2]
[379185261,1755179466505,-3164.98,0.00027534,2]
[379185262,1755179466514,-400.0,0.00027534,2]
[379185263,1755179466524,-2022.38,0.00027534,2]
[379185264,1755179466533,-2367.98,0.00027534,2]
[379185265,1755179466544,-824.93,0.00027534,2]
[379185266,1755179466553,-472.71,0.00027534,2]
[379185267,1755179466563,-400.0,0.00027534,2]
[379185268,1755179466573,-554.2,0.00027534,2]
[379185269,1755179466582,-400.0,0.00027534,2]
[379185270,1755179466591,-3033.65,0.00027534,2]
[379185271,1755179466601,-400.0,0.00027534,2]
[379185272,1755179466611,-1027.01,0.00027534,2]
[379185273,1755179466620,-1077.23,0.00027534,2]
[379185274,1755179466630,-400.0,0.00027534,2]
[379185275,1755179466639,-536.0,0.00027534,2]
[379185277,1755179466649,-400.0,0.00027534,2]
[379185278,1755179466658,-2768.3,0.00027534,2]
[379185279,1755179466668,-1036.36,0.00027534,2]
[379185280,1755179466678,-11242.21,0.00027534,2]
[379185281,1755179466688,-400.0,0.00027534,2]
[379185282,1755179466697,-8412.35,0.00027534,2]
[379185283,1755179466707,-2835.09,0.00027534,2]
[379185284,1755179466717,-400.0,0.00027534,2]
[379185285,1755179466728,-400.0,0.00027534,2]
[379185286,1755179466738,-1159.63,0.00027534,2]
[379185287,1755179466747,-466.49,0.00027534,2]
[379185288,1755179466757,-5796.16,0.00027534,2]
[379185289,1755179466767,-3296.51,0.00027534,2]
[379185290,1755179466777,-400.0,0.00027534,2]
[379185291,1755179466786,-400.0,0.00027534,2]
[379185292,1755179466796,-400.0,0.00027534,2]
[379185293,1755179466806,-400.0,0.00027534,2]
[379185294,1755179466816,-566.7,0.00027534,2]
[379185295,1755179466825,-421.78,0.00027534,2]
[379185296,1755179466835,-791.99,0.00027534,2]
[379185298,1755179466844,-2909.62,0.00027534,2]
[379185299,1755179466854,-6142.06,0.00027534,2]
[379185300,1755179466864,-7165.58,0.00027534,2]
[379185301,1755179466873,-400.0,0.00027534,2]
[379185302,1755179466883,-400.0,0.00027534,2]
[379185303,1755179466893,-590.98,0.00027534,2]
[379185304,1755179466903,-3513.41,0.00027534,2]
[379185306,1755179466913,-400.0,0.00027534,2]
[379185307,1755179466923,-2796.48,0.00027534,2]
[379185308,1755179466933,-400.0,0.00027534,2]
[379185309,1755179466943,-2965.53,0.00027534,2]
[379185310,1755179466952,-1151.15,0.00027534,2]
[379185311,1755179466962,-400.0,0.00027534,2]
[379185312,1755179466972,-400.0,0.00027534,2]
[379185313,1755179466986,-500.0,0.00027534,2]
[379185314,1755179466997,-6269.11,0.00027534,2]
[379185315,1755179467007,-250.0,0.00027534,2]
[379185316,1755179467017,-400.0,0.00027534,2]
[379185317,1755179467026,-5007.6,0.00027534,2]
[379185319,1755179467036,-5388.83,0.00027534,2]
[379185320,1755179467045,-2998.41,0.00027534,2]
[379185321,1755179467055,-400.0,0.00027534,2]
[379185322,1755179467064,-405.16,0.00027534,2]
[379185323,1755179467074,-491.04,0.00027534,2]
[379185324,1755179467084,-400.0,0.00027534,2]
[379185325,1755179467094,-2819.78,0.00027534,2]
[379185326,1755179467103,-400.0,0.00027534,2]
[379185327,1755179467113,-400.0,0.00027534,2]
[379185328,1755179467122,-2759.32,0.00027534,2]
[379185329,1755179467132,-400.0,0.00027534,2]
[379185330,1755179467142,-400.0,0.00027534,2]
[379185331,1755179467152,-3024.01,0.00027534,2]
[379185332,1755179467162,-4550.46,0.00027534,2]
[379185333,1755179467171,-768.44,0.00027534,2]
[379185334,1755179467181,-937.58,0.00027534,2]
[379185335,1755179467191,-2430.95,0.00027534,2]
[379185336,1755179467201,-551.84,0.00027534,2]
[379185338,1755179467211,-400.0,0.00027534,2]
[379185339,1755179467220,-400.0,0.00027534,2]
[379185340,1755179467232,-3415.94,0.00027534,2]
[379185341,1755179467242,-5179.13,0.00027534,2]
[379185342,1755179467252,-9573.61,0.00027534,2]
[379185343,1755179467261,-400.0,0.00027534,2]
[379185344,1755179467271,-400.0,0.00027534,2]
[379185346,1755179467280,-1212.32,0.00027534,2]
[379185347,1755179467291,-811.77,0.00027534,2]
[379185348,1755179467304,-4887.69,0.00027534,2]
[379185349,1755179467314,-2404.25,0.00027534,2]
[379185350,1755179467324,-971.5,0.00027534,2]
[379185351,1755179467334,-3913.27,0.00027534,2]
[379185352,1755179467344,-400.0,0.00027534,2]
[379185353,1755179467354,-151.0,0.00027534,7]
[379185354,1755179467364,-177.604191,0.00027534,7]
[379185355,1755179467376,-1418.63,0.00027534,2]
[379185357,1755179467386,-177.604191,0.00027534,7]
[379185358,1755179467396,-151.0,0.00027534,7]
[379185359,1755179467405,-1264.53,0.00027534,2]
[379185360,1755179467415,-400.0,0.00027534,2]
[379185361,1755179467425,-400.0,0.00027534,2]
[379185362,1755179467435,-400.0,0.00027534,2]
[379185364,1755179467444,-828.74,0.00027534,2]
[379185365,1755179467454,-400.0,0.00027534,2]
[379185366,1755179467463,-757.72,0.00027534,2]
[379185367,1755179467473,-177.604191,0.00027534,7]
[379185368,1755179467485,-177.604191,0.00027534,7]
[379185369,1755179467495,-1690.89,0.00027534,2]
[379185370,1755179467505,-205.519819,0.00027534,7]
[379185371,1755179467514,-400.0,0.00027534,2]
[379185372,1755179467524,-400.0,0.00027534,2]
[379185373,1755179467534,-9148.58,0.00027534,2]
[379185375,1755179467543,-4189.74,0.00027534,2]
[379185376,1755179467553,-400.0,0.00027534,2]
[379185377,1755179467562,-5077.33,0.00027534,2]
[379185378,1755179467572,-15255.67,0.00027534,2]
[379185379,1755179467581,-1324.73,0.00027534,2]
[379185380,1755179467591,-4567.8,0.00027534,2]
[379185381,1755179467601,-5746.57,0.00027534,2]
[379185382,1755179467610,-400.0,0.00027534,2]
[379185383,1755179467619,-5248.85,0.00027534,2]
[379185384,1755179467629,-631.91,0.00027534,2]
[379185385,1755179467638,-400.0,0.00027534,2]
[379185386,1755179467648,-430.85,0.00027534,2]
[379185387,1755179467658,-400.0,0.00027534,2]
[379185389,1755179467668,-400.0,0.00027534,2]
[379185390,1755179467677,-4148.03,0.00027534,2]
[379185391,1755179467687,-400.0,0.00027534,2]
[379185393,1755179467696,-441.44,0.00027534,2]
[379185394,1755179467706,-4454.6,0.00027534,2]
[379185395,1755179467715,-400.0,0.00027534,2]
[379185396,1755179467726,-1731.61,0.00027534,2]
[379185398,1755179467736,-400.0,0.00027534,2]
[379185399,1755179467745,-790.99,0.00027534,2]
[379185400,1755179467755,-400.0,0.00027534,2]
[379185401,1755179467764,-400.0,0.00027534,2]
[379185402,1755179467774,-7545.67,0.00027534,2]
[379185404,1755179467783,-4726.54,0.00027534,2]
[379185405,1755179467793,-400.0,0.00027534,2]
[379185406,1755179467802,-2981.8,0.00027534,2]
[379185407,1755179467812,-6625.86,0.00027534,2]
[379185408,1755179467821,-2671.2,0.00027534,2]
[379185409,1755179467832,-2110.93,0.00027534,2]
[379185411,1755179467841,-400.0,0.00027534,2]
[379185412,1755179467851,-970.46,0.00027534,2]
[379185413,1755179467861,-3592.83,0.00027534,2]
[379185414,1755179467870,-933.21,0.00027534,2]
[379185415,1755179467879,-11651.09,0.00027534,2]
[379185416,1755179467889,-400.0,0.00027534,2]
[379185418,1755179467898,-407.89206795,0.00027534,2]
[379185419,1755179467908,-2104.89,0.00027534,2]
[379185420,1755179467917,-16327.36,0.00027534,2]
[379185421,1755179467926,-400.0,0.00027534,2]
[379185422,1755179467936,-3818.58,0.00027534,2]
[379185423,1755179467947,-3184.18,0.00027534,2]
[379185424,1755179467956,-400.0,0.00027534,2]
[379185425,1755179467965,-4795.66,0.00027534,2]
[379185426,1755179467975,-4535.65,0.00027534,2]
[379185427,1755179467986,-878.02,0.00027534,2]
[379185428,1755179467996,-769.44,0.00027534,2]
[379185429,1755179468005,-4357.17,0.00027534,2]
[379185430,1755179468015,-431.60870158,0.00027534,2]
[379185431,1755179468025,-400.0,0.00027534,2]
[379185432,1755179468034,-1647.61,0.00027534,2]
[379185433,1755179468044,-7888.02,0.00027534,2]
[379185434,1755179468053,-2661.37,0.00027534,2]
[379185435,1755179468063,-400.0,0.00027534,2]
[379185436,1755179468072,-8819.86,0.00027534,2]
[379185437,1755179468082,-3595.76,0.00027534,2]
[379185438,1755179468092,-1441.15,0.00027534,2]
[379185439,1755179468102,-400.0,0.00027534,2]
[379185440,1755179468111,-1134.57,0.00027534,2]
[379185441,1755179468121,-400.0,0.00027534,2]
[379185442,1755179468132,-5276.72,0.00027534,2]
[379185443,1755179468142,-400.0,0.00027534,2]
[379185444,1755179468151,-4644.06,0.00027534,2]
[379185445,1755179468161,-1778.89,0.00027534,2]
[379185446,1755179468171,-13393.55,0.00027534,2]
[379185447,1755179468180,-1641.15,0.00027534,2]
[379185448,1755179468190,-400.0,0.00027534,2]
[379185449,1755179468200,-400.0,0.00027534,2]
[379185450,1755179468209,-5678.3,0.00027534,2]
[379185451,1755179468219,-735.22,0.00027534,2]
[379185452,1755179468230,-400.0,0.00027534,2]
[379185453,1755179468240,-4586.96,0.00027534,2]
[379185454,1755179468250,-2434.04,0.00027534,2]
[379185455,1755179468259,-400.0,0.00027534,2]
[379185456,1755179468269,-5162.25,0.00027534,2]
[379185457,1755179468278,-9178.08,0.00027534,2]
[379185458,1755179468289,-1744.82,0.00027534,2]
[379185459,1755179468304,-643.25,0.00027534,2]
[379185460,1755179468316,-8397.78,0.00027534,2]
[379185461,1755179468326,-400.0,0.00027534,2]
[379185462,1755179468338,-324.19,0.00027534,2]
[379185463,1755179468348,-400.0,0.00027534,2]
[379185464,1755179468358,-4279.47,0.00027534,2]
[379185465,1755179468369,-400.0,0.00027534,2]
[379185466,1755179468379,-400.0,0.00027534,2]
[379185467,1755179468390,-400.0,0.00027534,2]
[379185468,1755179468400,-400.0,0.00027534,2]
[379185469,1755179468410,-4330.26,0.00027534,2]
[379185470,1755179468420,-400.0,0.00027534,2]
[379185471,1755179468430,-400.0,0.00027534,2]
[379185472,1755179468440,-400.0,0.00027534,2]
[379185473,1755179468449,-9912.73,0.00027534,2]
[379185474,1755179468459,-2271.01,0.00027534,2]
[379185475,1755179468469,-1145.42,0.00027534,2]
[379185476,1755179468480,-7520.55,0.00027534,2]
[379185477,1755179468495,-4423.486674,0.00027534,7]
[379185478,1755179468506,-400.0,0.00027534,2]
[379185479,1755179468878,-6842.82,0.00027534,2]
[379185480,1755179468903,-4423.486674,0.00027534,7]
[379185481,1755179468913,-400.0,0.00027534,2]
[379185482,1755179468922,-400.0,0.00027534,2]
[379185483,1755179468932,-982.43,0.00027534,2]
[379185484,1755179468942,-871.48,0.00027534,2]
[379185485,1755179468952,-400.0,0.00027534,2]
[379185486,1755179468962,-5391.21,0.00027534,2]
[379185487,1755179468972,-1894.35,0.00027534,2]
[379185488,1755179468988,-500.0,0.00027534,2]
[379185489,1755179468997,-4423.486674,0.00027534,7]
[379185490,1755179469008,-4423.486674,0.00027534,7]
[379185491,1755179469019,-400.0,0.00027534,2]
[379185492,1755179469029,-1388.37,0.00027534,2]
[379185493,1755179469039,-4960.43,0.00027534,2]
[379185494,1755179469048,-3252.76,0.00027534,2]
[379185495,1755179469058,-3949.77,0.00027534,2]
[379185496,1755179469069,-400.0,0.00027534,2]
[379185497,1755179469079,-3328.27,0.00027534,2]
[379185498,1755179469089,-400.0,0.00027534,2]
[379185499,1755179469099,-1135.62,0.00027534,2]
[379185500,1755179469109,-3427.84,0.00027534,2]
[379185501,1755179469119,-6433.13,0.00027534,2]
[379185502,1755179469129,-7052.59,0.00027534,2]
[379185503,1755179469139,-1803.49,0.00027534,2]
[379185504,1755179469148,-1209.61,0.00027534,2]
[379185505,1755179469158,-5167.46,0.00027534,2]
[379185506,1755179469168,-1678.98,0.00027534,2]
[379185507,1755179469177,-941.35,0.00027534,2]
[379185508,1755179469187,-3519.05,0.00027534,2]
[379185509,1755179469197,-1304.49,0.00027534,2]
[379185510,1755179469207,-4595.48,0.00027534,2]
[379185511,1755179469216,-1924.17,0.00027534,2]
[379185512,1755179469229,-3884.79,0.00027534,2]
[379185513,1755179469239,-885.62,0.00027534,2]
[379185514,1755179469249,-400.0,0.00027534,2]
[379185515,1755179469258,-400.0,0.00027534,2]
[379185516,1755179469268,-4623.16,0.00027534,2]
[379185517,1755179469278,-585.67,0.00027534,2]
[379185518,1755179469288,-2611.27,0.00027534,2]
[379185519,1755179469302,-5363.97,0.00027534,2]
[379185520,1755179469311,-19296.96,0.00027534,2]
[379185521,1755179469321,-423.47,0.00027534,2]
[379185522,1755179469333,-5352.24,0.00027534,2]
[379185523,1755179469342,-3189.02,0.00027534,2]
[379185524,1755179469351,-1771.38,0.00027534,2]
[379185525,1755179469361,-400.0,0.00027534,2]
[379185526,1755179469371,-13949.2,0.00027534,2]
[379185527,1755179469381,-2058.24,0.00027534,2]
[379185528,1755179469391,-9059.33,0.00027534,2]
[379185529,1755179469400,-400.0,0.00027534,2]
[379185530,1755179469410,-1778.74,0.00027534,2]
[379185531,1755179469420,-400.0,0.00027534,2]
[379185532,1755179469430,-3667.81,0.00027534,2]
[379185533,1755179469440,-2991.09,0.00027534,2]
[379185534,1755179469449,-2994.02,0.00027534,2]
[379185535,1755179469460,-955.37,0.00027534,2]
[379185536,1755179469470,-3363.33,0.00027534,2]
[379185537,1755179469483,-2865.58,0.00027534,2]
[379185538,1755179469493,-378.970415,0.00027534,7]
[379185539,1755179469503,-754.48,0.00027534,2]
[379185540,1755179469513,-454.18,0.00027534,2]
[379185541,1755179469523,-378.970415,0.00027534,7]
[379185542,1755179469533,-1106.23,0.00027534,2]
[379185543,1755179469543,-791.65,0.00027534,2]
[379185544,1755179469553,-5409.25,0.00027534,2]
[379185545,1755179469562,-2905.11,0.00027534,2]
[379185546,1755179469572,-657.11,0.00027534,2]
[379185547,1755179469582,-400.0,0.00027534,2]
[379185548,1755179469592,-400.0,0.00027534,2]
[379185549,1755179469602,-378.970415,0.00027534,7]
[379185550,1755179469611,-378.970415,0.00027534,7]
[379185551,1755179469621,-400.0,0.00027534,2]
[379185552,1755179469631,-3070.24,0.00027534,2]
[379185553,1755179469641,-431.91,0.00027534,2]
[379185554,1755179469651,-3703.3,0.00027534,2]
[379185555,1755179469660,-468.06,0.00027534,2]
[379185556,1755179469670,-6380.84,0.00027534,2]
[379185557,1755179469680,-5109.05,0.00027534,2]
[379185558,1755179469689,-565.48,0.00027534,2]
[379185559,1755179469699,-400.0,0.00027534,2]
[379185560,1755179469709,-2866.62,0.00027534,2]
[379185561,1755179469718,-2084.09,0.00027534,2]
[379185562,1755179469730,-3397.05,0.00027534,2]
[379185563,1755179469739,-400.0,0.00027534,2]
[379185564,1755179469749,-653.27,0.00027534,2]
[379185565,1755179469759,-3809.52,0.00027534,2]
[379185566,1755179469769,-1799.44,0.00027534,2]
[379185567,1755179469778,-5709.47,0.00027534,2]
[379185568,1755179469788,-400.0,0.00027534,2]
[379185569,1755179469798,-3146.38,0.00027534,2]
[379185570,1755179469808,-400.0,0.00027534,2]
[379185571,1755179469819,-400.0,0.00027534,2]
[379185572,1755179469829,-6159.72,0.00027534,2]
[379185573,1755179469839,-7895.66,0.00027534,2]
[379185574,1755179469849,-400.0,0.00027534,2]
[379185575,1755179469859,-1886.02,0.00027534,2]
[379185576,1755179469869,-968.99,0.00027534,2]
[379185577,1755179469879,-400.0,0.00027534,2]
[379185578,1755179469889,-5017.0,0.00027534,2]
[379185579,1755179469899,-2688.66,0.00027534,2]
[379185580,1755179469909,-7360.68,0.00027534,2]
[379185581,1755179469918,-2900.49,0.00027534,2]
[379185582,1755179469928,-400.0,0.00027534,2]
[379185583,1755179469937,-15994.02,0.00027534,2]
[379185584,1755179469947,-400.0,0.00027534,2]
[379185585,1755179469957,-400.0,0.00027534,2]
[379185586,1755179469967,-4469.76,0.00027534,2]
[379185587,1755179469980,-400.0,0.00027534,2]
[379185588,1755179469991,-1938.57,0.00027534,2]
[379185589,1755179470001,-2173.39,0.00027534,2]
[379185590,1755179470010,-530.13,0.00027534,2]
[379185591,1755179470020,-17553.24,0.00027534,2]
[379185592,1755179470029,-400.0,0.00027534,2]
[379185593,1755179470039,-400.0,0.00027534,2]
[379185594,1755179470049,-400.53,0.00027534,2]
[379185595,1755179470059,-400.0,0.00027534,2]
[379185596,1755179470069,-400.0,0.00027534,2]
[379185597,1755179470079,-2036.21,0.00027534,2]
[379185598,1755179470089,-589.61,0.00027534,2]
[379185599,1755179470099,-400.0,0.00027534,2]
[379185600,1755179470109,-464.22,0.00027534,2]
[379185601,1755179470119,-1533.43,0.00027534,2]
[379185602,1755179470128,-8251.41,0.00027534,2]
[379185603,1755179470137,-852.48,0.00027534,2]
[379185604,1755179470147,-601.11,0.00027534,2]
[379185605,1755179470157,-400.0,0.00027534,2]
[379185606,1755179470167,-6634.66,0.00027534,2]
[379185607,1755179470176,-400.0,0.00027534,2]
[379185608,1755179470186,-3246.07,0.00027534,2]
[379185609,1755179470195,-400.0,0.00027534,2]
[379185610,1755179470205,-400.0,0.00027534,2]
[379185611,1755179470215,-4098.25,0.00027534,2]
[379185612,1755179470224,-2294.27,0.00027534,2]
[379185613,1755179470237,-400.0,0.00027534,2]
[379185614,1755179470247,-2274.1,0.00027534,2]
[379185615,1755179470256,-463.06,0.00027534,2]
[379185616,1755179470266,-400.0,0.00027534,2]
[379185617,1755179470276,-8323.29,0.00027534,2]
[379185618,1755179470286,-400.0,0.00027534,2]
[379185619,1755179470298,-1373.04,0.00027534,2]
[379185620,1755179470308,-3979.16,0.00027534,2]
[379185621,1755179470317,-1673.17,0.00027534,2]
[379185622,1755179470327,-3417.12,0.00027534,2]
[379185623,1755179470337,-8136.51,0.00027534,2]
[379185624,1755179470346,-3035.23,0.00027534,2]
[379185625,1755179470355,-5646.32,0.00027534,2]
[379185626,1755179470365,-2910.41,0.00027534,2]
[379185627,1755179470375,-400.0,0.00027534,2]
[379185628,1755179470385,-151.0,0.00027534,7]
[379185629,1755179470395,-151.0,0.00027534,7]
[379185630,1755179470404,-5004.11,0.00027534,2]
[379185631,1755179470414,-400.0,0.00027534,2]
[379185632,1755179470423,-400.0,0.00027534,2]
[379185633,1755179470433,-2945.4,0.00027534,2]
[379185634,1755179470442,-2878.63,0.00027534,2]
[379185635,1755179470452,-826.15,0.00027534,2]
[379185636,1755179470462,-4999.63,0.00027534,2]
[379185637,1755179470472,-1661.28,0.00027534,2]
[379185638,1755179470485,-2802.14,0.00027534,2]
[379185639,1755179470494,-400.0,0.00027534,2]
[379185640,1755179470503,-400.0,0.00027534,2]
[379185641,1755179470512,-7399.68,0.00027534,2]
[379185642,1755179470522,-400.0,0.00027534,2]
[379185643,1755179470531,-1043.23,0.00027534,2]
[379185644,1755179470540,-5144.03,0.00027534,2]
[379185645,1755179470549,-2015.03,0.00027534,2]
[379185646,1755179470559,-2644.47,0.00027534,2]
[379185647,1755179470568,-448.69,0.00027534,2]
[379185648,1755179470577,-400.0,0.00027534,2]
[379185649,1755179470587,-400.0,0.00027534,2]
[379185650,1755179470596,-400.0,0.00027534,2]
[379185651,1755179470606,-400.0,0.00027534,2]
[379185652,1755179470615,-1409.485429,0.00027534,7]
[379185653,1755179470625,-1767.72,0.00027534,2]
[379185654,1755179470634,-1409.485429,0.00027534,7]
[379185655,1755179470643,-4162.35,0.00027534,2]
[379185656,1755179470652,-516.04,0.00027534,2]
[379185657,1755179470662,-3908.7,0.00027534,2]
[379185658,1755179470672,-985.352122,0.00027534,7]
[379185659,1755179470681,-985.352122,0.00027534,7]
[379185660,1755179470691,-582.84,0.00027534,2]
[379185661,1755179470700,-1075.04,0.00027534,2]
[379185662,1755179470709,-400.0,0.00027534,2]
[379185663,1755179470719,-985.352122,0.00027534,7]
[379185664,1755179470731,-5684.04,0.00027534,2]
[379185665,1755179470741,-400.0,0.00027534,2]
[379185666,1755179470751,-5202.71,0.00027534,2]
[379185667,1755179470760,-1726.11,0.00027534,2]
[379185668,1755179470770,-1409.485429,0.00027534,7]
[379185669,1755179470781,-1409.485429,0.00027534,7]
[379185670,1755179470792,-985.352122,0.00027534,7]
[379185671,1755179470801,-452.07,0.00027534,2]
[379185672,1755179470811,-985.352122,0.00027534,7]
[379185673,1755179470821,-985.352122,0.00027534,7]
[379185674,1755179470830,-566.36,0.00027534,2]
[379185675,1755179470840,-940.58,0.00027534,2]
[379185676,1755179470850,-686.6,0.00027534,2]
[379185677,1755179470859,-400.0,0.00027534,2]
[379185678,1755179470869,-400.0,0.00027534,2]
[379185679,1755179470879,-400.0,0.00027534,2]
[379185680,1755179470889,-828.52,0.00027534,2]
[379185681,1755179470899,-513.48,0.00027534,2]
[379185682,1755179470909,-11662.69,0.00027534,2]
[379185683,1755179470919,-151.0,0.00027534,7]
[379185684,1755179470928,-261.50341476,0.00027534,2]
[379185685,1755179470938,-14293.19,0.00027534,2]
[379185686,1755179470948,-24977.85,0.00027534,2]
[379185687,1755179470959,-400.0,0.00027534,2]
[379185688,1755179470968,-151.0,0.00027534,7]
[379185689,1755179470979,-4838.71,0.00027534,2]
[379185690,1755179470990,-5306.63,0.00027534,2]
[379185691,1755179471000,-1255.95,0.00027534,2]
[379185692,1755179471010,-5329.72,0.00027534,2]
[379185693,1755179471019,-1882.75,0.00027534,2]
[379185694,1755179471029,-404.06,0.00027534,2]
[379185695,1755179471039,-1882.53732048,0.00027544,2]
[379185696,1755179471048,-168.16829438,0.0002755,2]
[379185697,1755179471058,-938.49393647,0.00027553,2]
[379185698,1755179471068,-361.23318125,0.00027559,2]
[379185699,1755179471078,-1975.08,0.0002757,2]
[379185700,1755179471089,-1975.08,0.0002757,2]
[379185701,1755179471099,-1975.08,0.0002757,2]
[379185702,1755179471109,-1975.08,0.0002757,2]
[379185703,1755179471118,-1975.22954829,0.0002757,2]
[379185704,1755179471128,-506.67658515,0.00027573,5]
[379185705,1755179471138,-500.0,0.00027573,5]
[379185706,1755179471148,-502.9880039,0.00027573,5]
[379185707,1755179471158,-500.0,0.00027573,5]
[379185708,1755179471167,-500.0,0.00027573,5]
[379185709,1755179471177,-500.0,0.00027573,5]
[379185710,1755179471187,-502.07417471,0.00027573,5]
[379185711,1755179471197,-500.0,0.00027573,5]
[379185712,1755179471207,-500.0,0.00027573,5]
[379185713,1755179471218,-500.0,0.00027573,5]
[379185714,1755179471227,-500.0,0.00027573,5]
[379185715,1755179471240,-500.0,0.00027573,5]
[379185716,1755179471250,-159.9041696,0.00027573,2]
[379185717,1755179471259,-500.0,0.00027573,5]
[379185718,1755179471269,-159.91944893,0.00027573,5]
[379185719,1755179471279,-500.45598926,0.00027573,5]
[379185720,1755179471290,-159.86646837,0.00027573,2]
[379185721,1755179471431,-500.0,0.00027573,5]
[379185722,1755179471441,-500.0,0.00027573,5]
[379185723,1755179471451,-500.0,0.00027573,5]
[379185724,1755179471460,-530.09559838,0.00027573,5]
[379185725,1755179471469,-500.0,0.00027573,5]
[379185726,1755179471483,-150.0,0.0002758,2]
[379185727,1755179471493,-401.42150218,0.00027581,2]
[379185728,1755179471502,-151.0,0.00027598,3]
[379185729,1755179471512,-151.0,0.00027598,3]
[379185730,1755179471521,-151.0,0.00027598,3]
[379185731,1755179471531,-153.72610135,0.00027598,3]